{"text_format":"1","workbook":"xlsx","n_sheets":3,"sheets":["Formulaire","BDD","Feuil1"],"not_rendered":{"charts":0,"images":0,"macros":1,"external_links":0,"defined_names":0,"comments":0,"pivot_tables":0},"unopened":[],"bounds":{"document_bytes":16777216,"sheet_cells":100000,"rows_first":2000,"rows_last":500,"rows_between":2000,"halvings":0,"cell_chars":16384,"cell_head_chars":4096},"cells_cut":0,"cells_raw":0,"read":"whole","date_system":"1900"}

{"sheet":"Formulaire","index":0,"n_rows":31,"n_cols":5,"rows_kept":31,"cut":false,"hidden":false,"merged":[]}
["Auditeur :","JD","Date : ","Semaine 27"]
[]
["ID","Questions","Oui","Non","NA"]
["Q1",{"$f":"IFERROR(VLOOKUP(A4,BDD!A2:B34,2,FALSE),\"\")","v":"Fait-il beau ?"},null,null,"x"]
["Q3",{"$f":"IFERROR(VLOOKUP(A5,BDD!A3:B35,2,FALSE),\"\")","v":"Voit-on le soleil ?"},null,null,"x"]
["q5",{"$f":"IFERROR(VLOOKUP(A6,BDD!A4:B36,2,FALSE),\"\")","v":"Est-ce qu'il pleut ?"},null,null,"x"]
[null,{"$f":"IFERROR(VLOOKUP(A7,BDD!A5:B37,2,FALSE),\"\")","v":""}]
[null,{"$f":"IFERROR(VLOOKUP(A8,BDD!A6:B38,2,FALSE),\"\")","v":""}]
[null,{"$f":"IFERROR(VLOOKUP(A9,BDD!A7:B39,2,FALSE),\"\")","v":""}]
[null,{"$f":"IFERROR(VLOOKUP(A10,BDD!A8:B40,2,FALSE),\"\")","v":""}]
[null,{"$f":"IFERROR(VLOOKUP(A11,BDD!A9:B41,2,FALSE),\"\")","v":""}]
[null,{"$f":"IFERROR(VLOOKUP(A12,BDD!A10:B42,2,FALSE),\"\")","v":""}]
[null,{"$f":"IFERROR(VLOOKUP(A13,BDD!A11:B43,2,FALSE),\"\")","v":""}]
[null,{"$f":"IFERROR(VLOOKUP(A14,BDD!A12:B44,2,FALSE),\"\")","v":""}]
[null,{"$f":"IFERROR(VLOOKUP(A15,BDD!A13:B45,2,FALSE),\"\")","v":""}]
[null,{"$f":"IFERROR(VLOOKUP(A16,BDD!A14:B46,2,FALSE),\"\")","v":""}]
[null,{"$f":"IFERROR(VLOOKUP(A17,BDD!A15:B47,2,FALSE),\"\")","v":""}]
[null,{"$f":"IFERROR(VLOOKUP(A18,BDD!A16:B48,2,FALSE),\"\")","v":""}]
[null,{"$f":"IFERROR(VLOOKUP(A19,BDD!A17:B49,2,FALSE),\"\")","v":""}]
[null,{"$f":"IFERROR(VLOOKUP(A20,BDD!A18:B50,2,FALSE),\"\")","v":""}]
[null,{"$f":"IFERROR(VLOOKUP(A21,BDD!A19:B51,2,FALSE),\"\")","v":""}]
[null,{"$f":"IFERROR(VLOOKUP(A22,BDD!A20:B52,2,FALSE),\"\")","v":""}]
[null,{"$f":"IFERROR(VLOOKUP(A23,BDD!A21:B53,2,FALSE),\"\")","v":""}]
[null,{"$f":"IFERROR(VLOOKUP(A24,BDD!A22:B54,2,FALSE),\"\")","v":""}]
[null,{"$f":"IFERROR(VLOOKUP(A25,BDD!A23:B55,2,FALSE),\"\")","v":""}]
[null,{"$f":"IFERROR(VLOOKUP(A26,BDD!A24:B56,2,FALSE),\"\")","v":""}]
[null,{"$f":"IFERROR(VLOOKUP(A27,BDD!A25:B57,2,FALSE),\"\")","v":""}]
[null,{"$f":"IFERROR(VLOOKUP(A28,BDD!A26:B58,2,FALSE),\"\")","v":""}]
[null,{"$f":"IFERROR(VLOOKUP(A29,BDD!A27:B59,2,FALSE),\"\")","v":""}]
[null,{"$f":"IFERROR(VLOOKUP(A30,BDD!A28:B60,2,FALSE),\"\")","v":""}]
[null,{"$f":"IFERROR(VLOOKUP(A31,BDD!A29:B61,2,FALSE),\"\")","v":""}]

{"sheet":"BDD","index":1,"n_rows":8,"n_cols":8,"rows_kept":8,"cut":false,"hidden":false,"merged":[]}
[null,null,"Semaine 22","Semaine 23","Semaine 24","Semaine 25","Semaine 26","Semaine 27"]
["Q1","Fait-il beau ?","Non","Oui","NA","NA","NA","NA"]
["Q2","Fait-il chaud ?","Non","Non"]
["Q3","Voit-on le soleil ?","Oui",null,"NA","NA","NA","NA"]
["Q4","Il y a-t-il de l'orage ?",null,"NA"]
["Q5","Est-ce qu'il pleut ?",null,null,"NA","NA","NA","NA"]
["Q6","Risque d'inondation ?"]
["Q7"]

{"sheet":"Feuil1","index":2,"n_rows":16,"n_cols":4,"rows_kept":16,"cut":false,"hidden":false,"merged":[]}
[]
[]
[null,null,null,"Alimentation base de données Excel"]
[]
[null,null,null,"Villette54 - 17 juin 2016 à 09:45"]
[null,null,null,"Bonjour,"]
[null,null,null,"J’ai besoin d’un peu d’aide pour développer une petite base de données en VBA. J’ai un fichier avec 2 onglets, le premier est l’onglet « formulaire » que mes utilisateurs remplissent en cochant en face des questions dans les colonnes « Oui » « Non » ou « NA ». Les questions de cet onglet peuvent être modifiées à tout moment par le gestionnaire, soit une soit l’intégralité."]
[null,null,null,"Le second onglet est une petite base de données pour stocker les données une fois le formulaire complété afin d’établir des stats."]
[null,null,null,"Maintenant que vous voyez plus ou moins l’idée du fichier, voici mon problème : Je n’arrive pas à reporter les infos de mon formulaire dans ma base de données principalement à cause du fait que les questions puissent-être modifiées. Je ne sais pas comment dire en VBA « Si l’intitulé de la question de mon formulaire existe dans ma BDD, alors on ajoute simplement une colonne avec la date et le résultat (oui, non ou na). Sinon il faut ajouter la question à la suite de la BDD avant d’ajouter la colonne. »"]
[]
[null,null,null,"J’espère que ma demande est compréhensible et que vous pourrez m’aider !"]
[]
[null,null,null,"PS : au cas où cela ne serait pas clair les 3 parties sur chacun de mes onglets représentent toujours le même fichier, mais à des moments différents pour mieux comprendre ma demande !"]
[]
[null,null,null,"Merci d’avance. "]
[null,null,null,"Bonne journée,"]